[Event "Mistrovství Čech mládeže 2023 - HD16"]
[Site "Harrachov, Czech Republic"]
[Date "2023.10.24"]
[Round "5.1"]
[White "Davídek, Zdeněk"]
[Black "Kučina, Ondřej"]
[Result "1-0"]
[TimeControl "90m + 30s"]
[WhiteElo "2110"]
[BlackElo "1592"]

1. d4 {[%clk 01:30:48]} {[%emt 00:00:10]} e6 {[%clk 01:30:55]} {[%emt
00:00:06]} 2. c4 {[%clk 01:31:10]} {[%emt 00:00:09]} f5 {[%clk 01:31:18]}
{[%emt 00:00:07]} 3. Nf3 {[%clk 01:31:27]} {[%emt 00:00:12]} Nf6 {[%clk
01:31:21]} {[%emt 00:00:27]} 4. Bf4 {[%clk 01:31:38]} {[%emt 00:00:18]} Bb4+
{[%clk 01:27:26]} {[%emt 00:04:26]} 5. Nbd2 {[%clk 01:31:58]} {[%emt 00:00:11]}
O-O {[%clk 01:27:02]} {[%emt 00:00:53]} 6. e3 {[%clk 01:26:25]} {[%emt
00:06:04]} b6 {[%clk 01:25:26]} {[%emt 00:02:06]} 7. Be2 {[%clk 01:25:59]}
{[%emt 00:00:55]} d5 {[%clk 01:25:22]} {[%emt 00:00:34]} 8. O-O {[%clk
01:20:23]} {[%emt 00:06:06]} Bb7 {[%clk 01:24:17]} {[%emt 00:01:36]} 9. Rc1
{[%clk 01:15:24]} {[%emt 00:05:29]} Bd6 {[%clk 01:22:57]} {[%emt 00:01:50]} 10.
Bxd6 {[%clk 00:58:59]} {[%emt 00:16:55]} cxd6 {[%clk 01:22:04]} {[%emt
00:01:23]} 11. b4 {[%clk 00:55:16]} {[%emt 00:04:13]} dxc4 {[%clk 01:21:41]}
{[%emt 00:00:54]} 12. Bxc4 {[%clk 00:54:29]} {[%emt 00:01:17]} d5 {[%clk
01:19:18]} {[%emt 00:02:53]} 13. Bd3 {[%clk 00:42:47]} {[%emt 00:12:11]} Qd6
{[%clk 01:17:39]} {[%emt 00:02:09]} 14. Qb3 {[%clk 00:39:50]} {[%emt 00:03:27]}
a6 {[%clk 01:11:40]} {[%emt 00:06:30]} 15. Rc2 {[%clk 00:29:42]} {[%emt
00:10:38]} Nc6 {[%clk 00:57:49]} {[%emt 00:14:21]} 16. a3 {[%clk 00:28:59]}
{[%emt 00:01:13]} Ne4 {[%clk 00:56:25]} {[%emt 00:01:54]} 17. Rfc1 {[%clk
00:25:53]} {[%emt 00:03:35]} Rac8 {[%clk 00:56:14]} {[%emt 00:00:42]} 18. Qb2
{[%clk 00:24:15]} {[%emt 00:02:08]} Ne7 {[%clk 00:49:12]} {[%emt 00:07:31]} 19.
Rxc8 {[%clk 00:20:46]} {[%emt 00:03:59]} Rxc8 {[%clk 00:49:34]} {[%emt
00:00:09]} 20. Rxc8+ {[%clk 00:20:11]} {[%emt 00:01:05]} Bxc8 {[%clk 00:49:56]}
{[%emt 00:00:07]} 21. Bxe4 {[%clk 00:20:26]} {[%emt 00:00:15]} fxe4 {[%clk
00:49:39]} {[%emt 00:00:47]} 22. Ne5 {[%clk 00:19:21]} {[%emt 00:01:35]} Nc6
{[%clk 00:48:42]} {[%emt 00:01:28]} 23. Qc3 {[%clk 00:18:48]} {[%emt 00:01:03]}
Bd7 {[%clk 00:46:15]} {[%emt 00:02:56]} 24. f3 {[%clk 00:13:18]} {[%emt
00:06:02]} exf3 {[%clk 00:40:04]} {[%emt 00:06:41]} 25. Nxc6 {[%clk 00:13:41]}
{[%emt 00:00:07]} Qxc6 {[%clk 00:35:24]} {[%emt 00:05:10]} 26. Qxc6 {[%clk
00:14:05]} {[%emt 00:00:05]} Bxc6 {[%clk 00:35:50]} {[%emt 00:00:05]} 27. Nxf3
{[%clk 00:14:27]} {[%emt 00:00:07]} Be8 {[%clk 00:32:49]} {[%emt 00:03:31]} 28.
Kf2 {[%clk 00:13:08]} {[%emt 00:01:50]} h6 {[%clk 00:32:03]} {[%emt 00:01:16]}
29. Kg3 {[%clk 00:09:51]} {[%emt 00:03:47]} Kf7 {[%clk 00:30:44]} {[%emt
00:01:49]} 30. Kf4 {[%clk 00:07:58]} {[%emt 00:02:23]} Kf6 {[%clk 00:25:29]}
{[%emt 00:05:46]} 31. h4 {[%clk 00:07:22]} {[%emt 00:01:05]} h5 {[%clk
00:23:02]} {[%emt 00:02:57]} 32. Ne5 {[%clk 00:05:10]} {[%emt 00:02:42]} Bb5
{[%clk 00:15:50]} {[%emt 00:07:42]} 33. Nf3 {[%clk 00:05:15]} {[%emt 00:00:25]}
Bc6 {[%clk 00:14:59]} {[%emt 00:01:21]} 34. Nd2 {[%clk 00:05:34]} {[%emt
00:00:12]} Ba4 {[%clk 00:12:47]} {[%emt 00:02:43]} 35. Nb1 {[%clk 00:05:40]}
{[%emt 00:00:23]} Bb5 {[%clk 00:11:16]} {[%emt 00:01:59]} 36. Nc3 {[%clk
00:06:07]} {[%emt 00:00:05]} Bd7 {[%clk 00:11:06]} {[%emt 00:00:40]} 37. e4
{[%clk 00:03:45]} {[%emt 00:02:53]} Bc6 {[%clk 00:09:06]} {[%emt 00:02:29]} 38.
e5+ {[%clk 00:01:57]} {[%emt 00:02:17]} Kg6 {[%clk 00:08:40]} {[%emt 00:00:55]}
39. Nd1 {[%clk 00:01:46]} {[%emt 00:00:41]} Kh6 {[%clk 00:08:23]} {[%emt
00:00:47]} 40. Ne3 {[%clk 00:02:04]} {[%emt 00:00:12]} Kg6 {[%clk 00:07:39]}
{[%emt 00:01:14]} 41. g4 {[%clk 00:02:26]} {[%emt 00:00:09]} hxg4 {[%clk
00:06:44]} {[%emt 00:01:25]} 42. Kxg4 {[%clk 00:02:52]} {[%emt 00:00:04]} Bb5
{[%clk 00:06:26]} {[%emt 00:00:47]} 43. Ng2 {[%clk 00:01:39]} {[%emt 00:01:43]}
Be2+ {[%clk 00:05:55]} {[%emt 00:01:01]} 44. Kf4 {[%clk 00:01:46]} {[%emt
00:00:23]} Bf1 {[%clk 00:03:30]} {[%emt 00:02:53]} 45. Ne3 {[%clk 00:01:58]}
{[%emt 00:00:21]} Bh3 {[%clk 00:02:32]} {[%emt 00:01:27]} 46. a4 {[%clk
00:01:21]} {[%emt 00:01:08]} Kh5 {[%clk 00:00:38]} {[%emt 00:02:23]} 47. Kg3
{[%clk 00:01:31]} {[%emt 00:00:21]} Bf5 {[%clk 00:00:31]} {[%emt 00:00:37]} 48.
Nxf5 {[%clk 00:01:53]} {[%emt 00:00:08]} exf5 {[%clk 00:00:53]} {[%emt
00:00:08]} 49. Kf4 {[%clk 00:02:10]} {[%emt 00:00:13]} Kg6 {[%clk 00:00:34]}
{[%emt 00:00:49]} 50. h5+ {[%clk 00:02:36]} {[%emt 00:00:04]} Kf7 {[%clk
00:00:33]} {[%emt 00:00:32]} 51. Kxf5 {[%clk 00:03:02]} {[%emt 00:00:04]} b5
{[%clk 00:00:50]} {[%emt 00:00:13]} 52. axb5 {[%clk 00:03:14]} {[%emt
00:00:17]} axb5 {[%clk 00:01:12]} {[%emt 00:00:08]} 53. e6+ {[%clk 00:03:37]}
{[%emt 00:00:07]} 1-0

[Event "Mistrovství Čech mládeže 2023 - HD16"]
[Site "Harrachov, Czech Republic"]
[Date "2023.10.24"]
[Round "5.2"]
[White "Novotný, Dominik"]
[Black "Hozda, Max"]
[Result "0-1"]
[TimeControl "90m + 30s"]
[WhiteElo "1929"]
[BlackElo "2105"]

1. e4 {[%clk 01:30:58]} {[%emt 00:00:01]} Nf6 {[%clk 01:26:38]} {[%emt
00:04:18]} 2. Nc3 {[%clk 01:31:18]} {[%emt 00:00:13]} d5 {[%clk 01:26:54]}
{[%emt 00:00:14]} 3. exd5 {[%clk 01:29:55]} {[%emt 00:01:53]} Nxd5 {[%clk
01:27:13]} {[%emt 00:00:12]} 4. Nf3 {[%clk 01:29:44]} {[%emt 00:00:41]} Bg4
{[%clk 01:26:07]} {[%emt 00:01:36]} 5. h3 {[%clk 01:28:24]} {[%emt 00:01:50]}
Bh5 {[%clk 01:24:43]} {[%emt 00:01:54]} 6. Be2 {[%clk 01:23:21]} {[%emt
00:05:33]} e6 {[%clk 01:24:38]} {[%emt 00:00:34]} 7. d3 {[%clk 01:14:15]}
{[%emt 00:09:36]} Be7 {[%clk 01:23:08]} {[%emt 00:02:00]} 8. Bd2 {[%clk
01:13:46]} {[%emt 00:00:59]} c5 {[%clk 01:22:44]} {[%emt 00:00:54]} 9. Ne5
{[%clk 01:10:46]} {[%emt 00:03:31]} Bxe2 {[%clk 01:20:47]} {[%emt 00:02:26]} 10.
Qxe2 {[%clk 01:11:04]} {[%emt 00:00:11]} O-O {[%clk 01:14:48]} {[%emt
00:06:29]} 11. O-O {[%clk 01:04:40]} {[%emt 00:06:54]} Bf6 {[%clk 01:11:46]}
{[%emt 00:03:33]} 12. Rae1 {[%clk 01:02:13]} {[%emt 00:02:57]} Nxc3 {[%clk
01:10:07]} {[%emt 00:02:09]} 13. Bxc3 {[%clk 01:02:20]} {[%emt 00:00:23]} Qc7
{[%clk 01:08:26]} {[%emt 00:02:11]} 14. f4 {[%clk 01:00:33]} {[%emt 00:02:17]}
Nc6 {[%clk 01:04:28]} {[%emt 00:04:28]} 15. Qh5 {[%clk 00:43:59]} {[%emt
00:17:04]} Ne7 {[%clk 01:00:18]} {[%emt 00:04:40]} 16. Bd2 {[%clk 00:34:57]}
{[%emt 00:09:32]} Nf5 {[%clk 00:58:44]} {[%emt 00:02:05]} 17. Qd1 {[%clk
00:29:20]} {[%emt 00:06:07]} Bh4 {[%clk 00:56:10]} {[%emt 00:03:03]} 18. g3
{[%clk 00:21:37]} {[%emt 00:08:13]} Nxg3 {[%clk 00:51:02]} {[%emt 00:05:37]} 19.
Rf3 {[%clk 00:20:47]} {[%emt 00:01:22]} Nf5 {[%clk 00:51:06]} {[%emt 00:00:26]}
20. Re4 {[%clk 00:20:47]} {[%emt 00:00:30]} b5 {[%clk 00:49:01]} {[%emt
00:02:35]} 21. Be1 {[%clk 00:19:45]} {[%emt 00:01:31]} Be7 {[%clk 00:44:36]}
{[%emt 00:04:56]} 22. b3 {[%clk 00:18:22]} {[%emt 00:01:54]} f6 {[%clk
00:36:49]} {[%emt 00:08:16]} 23. Ng4 {[%clk 00:18:32]} {[%emt 00:00:20]} Nd4
{[%clk 00:37:07]} {[%emt 00:00:12]} 24. Rg3 {[%clk 00:15:36]} {[%emt 00:03:26]}
f5 {[%clk 00:37:14]} {[%emt 00:00:23]} 25. Re5 {[%clk 00:12:26]} {[%emt
00:03:40]} fxg4 {[%clk 00:37:11]} {[%emt 00:00:33]} 26. Qxg4 {[%clk 00:12:53]}
{[%emt 00:00:02]} Bf6 {[%clk 00:36:11]} {[%emt 00:01:30]} 0-1

[Event "Mistrovství Čech mládeže 2023 - HD16"]
[Site "Harrachov, Czech Republic"]
[Date "2023.10.24"]
[Round "5.3"]
[White "Hrbek, Jáchym"]
[Black "Andrle, Filip"]
[Result "0-1"]
[TimeControl "90m + 30s"]
[WhiteElo "1973"]
[BlackElo "1830"]

1. e4 {[%clk 01:30:49]} {[%emt 00:00:09]} c5 {[%clk 01:30:53]} {[%emt
00:00:08]} 2. b4 {[%clk 01:31:07]} {[%emt 00:00:11]} cxb4 {[%clk 01:31:11]}
{[%emt 00:00:13]} 3. a3 {[%clk 01:31:30]} {[%emt 00:00:07]} d5 {[%clk
01:31:35]} {[%emt 00:00:06]} 4. exd5 {[%clk 01:31:54]} {[%emt 00:00:06]} Qxd5
{[%clk 01:31:32]} {[%emt 00:00:33]} 5. Nf3 {[%clk 01:32:12]} {[%emt 00:00:12]}
e6 {[%clk 01:31:13]} {[%emt 00:00:50]} 6. c4 {[%clk 01:30:14]} {[%emt
00:02:27]} bxc3 {[%clk 01:23:42]} {[%emt 00:08:02]} 7. Nxc3 {[%clk 01:30:24]}
{[%emt 00:00:20]} Qd8 {[%clk 01:17:12]} {[%emt 00:06:59]} 8. Be2 {[%clk
01:23:52]} {[%emt 00:07:01]} Nf6 {[%clk 01:15:13]} {[%emt 00:02:29]} 9. O-O
{[%clk 01:24:01]} {[%emt 00:00:21]} Be7 {[%clk 01:13:04]} {[%emt 00:02:40]} 10.
d4 {[%clk 01:20:08]} {[%emt 00:04:23]} Nc6 {[%clk 01:08:11]} {[%emt 00:05:23]}
11. Re1 {[%clk 01:11:25]} {[%emt 00:09:13]} O-O {[%clk 01:06:34]} {[%emt
00:02:07]} 12. Bd3 {[%clk 01:09:15]} {[%emt 00:02:39]} b6 {[%clk 01:01:26]}
{[%emt 00:05:39]} 13. Bb2 {[%clk 01:04:04]} {[%emt 00:05:41]} Bb7 {[%clk
00:59:18]} {[%emt 00:02:39]} 14. Bc2 {[%clk 00:48:45]} {[%emt 00:15:49]} Ba6
{[%clk 00:40:17]} {[%emt 00:19:31]} 15. Qd2 {[%clk 00:33:06]} {[%emt 00:16:09]}
Rc8 {[%clk 00:36:52]} {[%emt 00:03:55]} 16. Rad1 {[%clk 00:22:48]} {[%emt
00:10:47]} Na5 {[%clk 00:32:51]} {[%emt 00:04:32]} 17. Ne5 {[%clk 00:22:57]}
{[%emt 00:00:21]} Nc4 {[%clk 00:31:53]} {[%emt 00:01:28]} 18. Nxc4 {[%clk
00:23:18]} {[%emt 00:00:09]} Bxc4 {[%clk 00:31:30]} {[%emt 00:00:53]} 19. Re3
{[%clk 00:18:46]} {[%emt 00:05:02]} Re8 {[%clk 00:26:34]} {[%emt 00:05:25]} 20.
Rh3 {[%clk 00:14:25]} {[%emt 00:04:50]} g6 {[%clk 00:24:32]} {[%emt 00:02:33]}
21. Ne4 {[%clk 00:05:54]} {[%emt 00:09:01]} Nxe4 {[%clk 00:22:37]} {[%emt
00:02:26]} 22. Bxe4 {[%clk 00:06:14]} {[%emt 00:00:09]} Bg5 {[%clk 00:22:26]}
{[%emt 00:00:41]} 23. f4 {[%clk 00:05:19]} {[%emt 00:01:25]} Bf6 {[%clk
00:21:51]} {[%emt 00:01:05]} 24. Qf2 {[%clk 00:01:17]} {[%emt 00:04:33]} Bg7
{[%clk 00:15:02]} {[%emt 00:07:18]} 25. Bb1 {[%clk 00:00:59]} {[%emt 00:00:48]}
Bd5 {[%clk 00:13:32]} {[%emt 00:02:00]} 26. g4 {[%clk 00:00:41]} {[%emt
00:00:48]} f5 {[%clk 00:13:23]} {[%emt 00:00:39]} 27. g5 {[%clk 00:00:50]}
{[%emt 00:00:21]} Qd7 {[%clk 00:12:47]} {[%emt 00:01:06]} 28. Qh4 {[%clk
00:00:46]} {[%emt 00:00:34]} Bh8 {[%clk 00:12:05]} {[%emt 00:01:12]} 29. Bd3
{[%clk 00:00:49]} {[%emt 00:00:26]} Rc7 {[%clk 00:11:51]} {[%emt 00:00:46]} 30.
Bb1 {[%clk 00:00:36]} {[%emt 00:00:43]} Bb7 {[%clk 00:10:24]} {[%emt 00:01:57]}
31. Ba2 {[%clk 00:00:32]} {[%emt 00:00:34]} Rc2 {[%clk 00:10:21]} {[%emt
00:00:32]} 32. Bb3 {[%clk 00:00:41]} {[%emt 00:00:22]} Rxb2 {[%clk 00:09:15]}
{[%emt 00:01:36]} 33. Ba4 {[%clk 00:00:33]} {[%emt 00:00:37]} b5 {[%clk
00:09:23]} {[%emt 00:00:22]} 34. Bb3 {[%clk 00:00:52]} {[%emt 00:00:11]} Bxd4+
{[%clk 00:08:29]} {[%emt 00:01:24]} 0-1

[Event "Mistrovství Čech mládeže 2023 - HD16"]
[Site "Harrachov, Czech Republic"]
[Date "2023.10.24"]
[Round "5.4"]
[White "Tegda, Vojtěch"]
[Black "Pressler, Tobias"]
[Result "0-1"]
[TimeControl "90m + 30s"]
[WhiteElo "1731"]
[BlackElo "1965"]

1. e4 {[%clk 01:30:55]} {[%emt 00:00:01]} c5 {[%clk 01:30:38]} {[%emt
00:00:15]} 2. c4 {[%clk 01:31:18]} {[%emt 00:00:16]} Nc6 {[%clk 01:29:45]}
{[%emt 00:01:24]} 3. Ne2 {[%clk 01:31:38]} {[%emt 00:00:09]} e6 {[%clk
01:28:34]} {[%emt 00:01:41]} 4. d4 {[%clk 01:31:58]} {[%emt 00:00:09]} d5
{[%clk 01:24:40]} {[%emt 00:04:25]} 5. exd5 {[%clk 01:23:00]} {[%emt 00:09:28]}
exd5 {[%clk 01:23:05]} {[%emt 00:02:05]} 6. Nbc3 {[%clk 01:23:02]} {[%emt
00:00:27]} dxc4 {[%clk 01:19:53]} {[%emt 00:03:43]} 7. d5 {[%clk 01:23:08]}
{[%emt 00:00:23]} Nb4 {[%clk 01:19:27]} {[%emt 00:00:56]} 8. Nf4 {[%clk
01:14:33]} {[%emt 00:09:05]} Bf5 {[%clk 01:16:41]} {[%emt 00:03:17]} 9. Bxc4
{[%clk 01:03:40]} {[%emt 00:11:22]} Nc2+ {[%clk 01:08:00]} {[%emt 00:09:12]} 10.
Kd2 {[%clk 00:58:53]} {[%emt 00:05:16]} Bd6 {[%clk 01:07:26]} {[%emt 00:01:04]}
11. Bb5+ {[%clk 00:46:33]} {[%emt 00:12:50]} Kf8 {[%clk 01:07:35]} {[%emt
00:00:21]} 12. Qf3 {[%clk 00:42:20]} {[%emt 00:04:42]} Qg5 {[%clk 01:06:14]}
{[%emt 00:01:52]} 13. Kd1 {[%clk 00:41:04]} {[%emt 00:01:46]} Qf6 {[%clk
00:57:16]} {[%emt 00:09:28]} 14. g4 {[%clk 00:33:17]} {[%emt 00:08:17]} Nd4
{[%clk 00:45:19]} {[%emt 00:12:27]} 15. Qg3 {[%clk 00:30:06]} {[%emt 00:03:41]}
Bc2+ {[%clk 00:45:13]} {[%emt 00:00:36]} 16. Ke1 {[%clk 00:30:29]} {[%emt
00:00:07]} a6 {[%clk 00:38:04]} {[%emt 00:07:40]} 17. Be2 {[%clk 00:22:42]}
{[%emt 00:08:16]} Re8 {[%clk 00:38:19]} {[%emt 00:00:14]} 18. Be3 {[%clk
00:19:04]} {[%emt 00:04:08]} Nxe2 {[%clk 00:29:20]} {[%emt 00:09:30]} 19. Ncxe2
{[%clk 00:18:50]} {[%emt 00:00:44]} Bd3 {[%clk 00:29:34]} {[%emt 00:00:17]} 20.
Bxc5 {[%clk 00:17:27]} {[%emt 00:01:52]} Bb5 {[%clk 00:19:01]} {[%emt
00:11:03]} 21. Bxd6+ {[%clk 00:13:51]} {[%emt 00:04:06]} Qxd6 {[%clk 00:19:25]}
{[%emt 00:00:05]} 22. Ne6+ {[%clk 00:13:47]} {[%emt 00:00:33]} Ke7 {[%clk
00:18:48]} {[%emt 00:01:08]} 23. Nxg7 {[%clk 00:13:23]} {[%emt 00:00:54]} Qb4+
{[%clk 00:19:04]} {[%emt 00:00:15]} 24. Qc3 {[%clk 00:12:35]} {[%emt 00:01:18]}
Qe4 {[%clk 00:18:51]} {[%emt 00:00:42]} 25. Qe3 {[%clk 00:10:47]} {[%emt
00:02:19]} Kf8 {[%clk 00:18:49]} {[%emt 00:00:32]} 26. Ng3 {[%clk 00:05:11]}
{[%emt 00:06:06]} Qb4+ {[%clk 00:18:39]} {[%emt 00:00:41]} 0-1

[Event "Mistrovství Čech mládeže 2023 - HD16"]
[Site "Harrachov, Czech Republic"]
[Date "2023.10.24"]
[Round "5.5"]
[White "Tesař, Jakub"]
[Black "Stein, Michael"]
[Result "0-1"]
[TimeControl "90m + 30s"]
[WhiteElo "1893"]
[BlackElo "1717"]

1. e4 {[%clk 01:30:57]} {[%emt 00:00:02]} e6 {[%clk 01:30:54]} {[%emt
00:00:07]} 2. d4 {[%clk 01:31:20]} {[%emt 00:00:06]} d5 {[%clk 01:31:21]}
{[%emt 00:00:03]} 3. Nd2 {[%clk 01:31:42]} {[%emt 00:00:08]} c5 {[%clk
01:31:45]} {[%emt 00:00:07]} 4. exd5 {[%clk 01:32:03]} {[%emt 00:00:08]} exd5
{[%clk 01:32:07]} {[%emt 00:00:09]} 5. Ngf3 {[%clk 01:32:21]} {[%emt 00:00:11]}
Nf6 {[%clk 01:32:05]} {[%emt 00:00:33]} 6. Be2 {[%clk 01:31:30]} {[%emt
00:01:21]} Nc6 {[%clk 01:31:16]} {[%emt 00:01:20]} 7. O-O {[%clk 01:30:39]}
{[%emt 00:01:21]} cxd4 {[%clk 01:29:09]} {[%emt 00:02:37]} 8. Nb3 {[%clk
01:29:57]} {[%emt 00:01:11]} Be7 {[%clk 01:27:26]} {[%emt 00:02:12]} 9. Nfxd4
{[%clk 01:24:50]} {[%emt 00:05:38]} O-O {[%clk 01:24:54]} {[%emt 00:03:02]} 10.
c3 {[%clk 01:20:11]} {[%emt 00:05:09]} h6 {[%clk 01:21:06]} {[%emt 00:04:18]}
11. Bf4 {[%clk 01:16:11]} {[%emt 00:04:30]} Bd6 {[%clk 01:13:36]} {[%emt
00:08:00]} 12. Bxd6 {[%clk 00:59:12]} {[%emt 00:17:30]} Qxd6 {[%clk 01:13:55]}
{[%emt 00:00:11]} 13. Nxc6 {[%clk 00:50:04]} {[%emt 00:09:38]} bxc6 {[%clk
01:12:43]} {[%emt 00:01:42]} 14. Qd4 {[%clk 00:49:44]} {[%emt 00:00:49]} Ne4
{[%clk 01:09:45]} {[%emt 00:03:28]} 15. Rfd1 {[%clk 00:46:10]} {[%emt
00:04:05]} Re8 {[%clk 00:59:12]} {[%emt 00:11:03]} 16. Bf1 {[%clk 00:36:19]}
{[%emt 00:10:21]} a5 {[%clk 00:55:55]} {[%emt 00:03:47]} 17. f3 {[%clk
00:31:03]} {[%emt 00:05:47]} Ng5 {[%clk 00:53:47]} {[%emt 00:02:38]} 18. Nc5
{[%clk 00:28:55]} {[%emt 00:02:38]} Qg6 {[%clk 00:51:48]} {[%emt 00:02:27]} 19.
Kh1 {[%clk 00:28:11]} {[%emt 00:01:15]} Ne6 {[%clk 00:49:02]} {[%emt 00:03:16]}
20. Nxe6 {[%clk 00:27:13]} {[%emt 00:01:28]} Bxe6 {[%clk 00:48:37]} {[%emt
00:00:56]} 21. Rd2 {[%clk 00:25:28]} {[%emt 00:02:15]} Bf5 {[%clk 00:45:53]}
{[%emt 00:03:13]} 22. Qc5 {[%clk 00:24:19]} {[%emt 00:01:39]} Re5 {[%clk
00:41:11]} {[%emt 00:05:10]} 23. Re2 {[%clk 00:20:52]} {[%emt 00:04:00]} Rxe2
{[%clk 00:37:43]} {[%emt 00:03:58]} 24. Bxe2 {[%clk 00:21:20]} {[%emt
00:00:02]} Re8 {[%clk 00:37:33]} {[%emt 00:00:40]} 25. Bf1 {[%clk 00:21:12]}
{[%emt 00:00:39]} Bb1 {[%clk 00:33:30]} {[%emt 00:04:31]} 26. Qf2 {[%clk
00:18:45]} {[%emt 00:02:58]} Rb8 {[%clk 00:29:18]} {[%emt 00:04:40]} 27. b3
{[%clk 00:13:19]} {[%emt 00:05:59]} Re8 {[%clk 00:28:03]} {[%emt 00:01:44]} 28.
Kg1 {[%clk 00:13:04]} {[%emt 00:00:46]} h5 {[%clk 00:24:45]} {[%emt 00:03:48]}
29. Qb2 {[%clk 00:11:34]} {[%emt 00:02:00]} Bd3 {[%clk 00:22:15]} {[%emt
00:02:59]} 30. Qd2 {[%clk 00:10:41]} {[%emt 00:01:24]} Bxf1 {[%clk 00:22:10]}
{[%emt 00:00:36]} 31. Kxf1 {[%clk 00:10:44]} {[%emt 00:00:27]} Qd6 {[%clk
00:21:17]} {[%emt 00:01:22]} 32. Re1 {[%clk 00:08:43]} {[%emt 00:02:33]} Kf8
{[%clk 00:18:58]} {[%emt 00:02:48]} 33. Rxe8+ {[%clk 00:08:14]} {[%emt
00:01:00]} Kxe8 {[%clk 00:19:24]} {[%emt 00:00:04]} 34. Qe3+ {[%clk 00:07:59]}
{[%emt 00:00:45]} Kd7 {[%clk 00:18:52]} {[%emt 00:01:01]} 35. Qa7+ {[%clk
00:06:59]} {[%emt 00:01:30]} Qc7 {[%clk 00:16:39]} {[%emt 00:02:42]} 36. Qxc7+
{[%clk 00:00:40]} {[%emt 00:06:51]} Kxc7 {[%clk 00:17:09]} {[%emt 00:00:01]} 37.
Ke2 {[%clk 00:00:41]} {[%emt 00:00:28]} Kd6 {[%clk 00:15:09]} {[%emt 00:02:29]}
38. b4 {[%clk 00:00:36]} {[%emt 00:00:36]} a4 {[%clk 00:12:58]} {[%emt
00:02:40]} 39. Kd3 {[%clk 00:00:47]} {[%emt 00:00:19]} c5 {[%clk 00:10:47]}
{[%emt 00:02:41]} 40. bxc5+ {[%clk 00:00:35]} {[%emt 00:00:42]} Kxc5 {[%clk
00:11:11]} {[%emt 00:00:07]} 41. a3 {[%clk 00:00:51]} {[%emt 00:00:14]} h4
{[%clk 00:10:23]} {[%emt 00:01:18]} 42. g4 {[%clk 00:00:46]} {[%emt 00:00:36]}
hxg3 {[%clk 00:09:33]} {[%emt 00:01:20]} 43. hxg3 {[%clk 00:01:09]} {[%emt
00:00:07]} f6 {[%clk 00:09:04]} {[%emt 00:00:58]} 44. Kd2 {[%clk 00:01:11]}
{[%emt 00:00:28]} Kc4 {[%clk 00:08:50]} {[%emt 00:00:44]} 45. Kc2 {[%clk
00:01:29]} {[%emt 00:00:12]} g6 {[%clk 00:06:49]} {[%emt 00:02:30]} 46. Kd2
{[%emt 00:01:30]} Kb3 {[%clk 00:06:33]} {[%emt 00:00:45]} 0-1

[Event "Mistrovství Čech mládeže 2023 - HD16"]
[Site "Harrachov, Czech Republic"]
[Date "2023.10.24"]
[Round "5.6"]
[White "Krupka, Aleš"]
[Black "Veverka, Vladimír"]
[Result "0-1"]
[TimeControl "90m + 30s"]
[WhiteElo "1444"]
[BlackElo "1849"]

1. e4 {[%clk 01:30:59]} e6 {[%clk 01:30:54]} {[%emt 00:00:07]} 2. d4 {[%clk
01:30:31]} {[%emt 00:00:57]} d5 {[%clk 01:31:18]} {[%emt 00:00:06]} 3. exd5
{[%clk 01:29:57]} {[%emt 00:01:04]} exd5 {[%clk 01:31:41]} {[%emt 00:00:08]} 4.
Nf3 {[%clk 01:24:22]} {[%emt 00:06:04]} Nf6 {[%clk 01:31:31]} {[%emt 00:00:40]}
5. Bd3 {[%clk 01:13:59]} {[%emt 00:10:53]} Bd6 {[%clk 01:31:53]} {[%emt
00:00:08]} 6. O-O {[%clk 01:13:23]} {[%emt 00:01:06]} O-O {[%clk 01:32:17]}
{[%emt 00:00:07]} 7. h3 {[%clk 01:13:15]} {[%emt 00:00:38]} h6 {[%clk
01:31:55]} {[%emt 00:00:52]} 8. Re1 {[%clk 01:09:34]} {[%emt 00:04:10]} c6
{[%clk 01:29:33]} {[%emt 00:02:52]} 9. c3 {[%clk 01:06:20]} {[%emt 00:03:43]}
Qc7 {[%clk 01:28:21]} {[%emt 00:01:43]} 10. Qc2 {[%clk 01:01:49]} {[%emt
00:05:00]} Nbd7 {[%clk 01:28:00]} {[%emt 00:00:51]} 11. Nbd2 {[%clk 00:48:34]}
{[%emt 00:13:46]} b6 {[%clk 01:25:30]} {[%emt 00:03:00]} 12. Nf1 {[%clk
00:37:52]} {[%emt 00:11:11]} Bb7 {[%clk 01:24:16]} {[%emt 00:01:44]} 13. Be3
{[%clk 00:36:14]} {[%emt 00:02:07]} c5 {[%clk 01:23:04]} {[%emt 00:01:43]} 14.
Qe2 {[%clk 00:30:14]} {[%emt 00:06:29]} Rae8 {[%clk 01:21:34]} {[%emt
00:02:00]} 15. Ba6 {[%clk 00:29:25]} {[%emt 00:01:19]} Ne4 {[%clk 01:18:42]}
{[%emt 00:03:22]} 16. Bxb7 {[%clk 00:28:46]} {[%emt 00:01:09]} Qxb7 {[%clk
01:19:01]} {[%emt 00:00:11]} 17. Qc2 {[%clk 00:24:30]} {[%emt 00:04:32]} f5
{[%clk 01:17:55]} {[%emt 00:01:49]} 18. dxc5 {[%clk 00:24:06]} {[%emt
00:00:55]} bxc5 {[%clk 01:17:32]} {[%emt 00:00:54]} 19. N1d2 {[%clk 00:19:18]}
{[%emt 00:05:18]} f4 {[%clk 01:17:36]} {[%emt 00:00:25]} 20. Nxe4 {[%clk
00:19:31]} {[%emt 00:00:17]} dxe4 {[%clk 01:17:56]} {[%emt 00:00:10]} 0-1